bitfinex/quotes_ETHUSD_20241122
["timestamp","ask_amount","ask_price","bid_price","bid_amount"]
[1732251099572,4.39144709,3401.3,3399.7,0.39790285]
[1732251099573,4.39144709,3401.3,3400.6,0.2931]
[1732251100160,3.0,3401.2,3400.6,0.2931]
[1732251100356,3.43914471,3401.2,3400.6,0.2931]
[1732251102802,0.55,3401.1,3400.6,0.2931]
[1732251102966,3.43914471,3401.2,3400.5,0.8192]
[1732251102967,3.55,3400.8,3400.5,0.8192]
[1732251103597,3.55,3400.8,3400.2,1.0479]
[1732251104160,3.55,3400.8,3400.2,0.7548]
[1732251107109,3.0,3400.8,3400.2,0.7548]
[1732251107263,4.39144709,3401.3,3400.2,0.7548]
[1732251107709,4.8305918,3401.3,3400.2,0.7548]
[1732251108092,5.0811992,3401.3,3400.2,0.7548]
[1732251108705,3.0,3401.2,3400.2,0.7548]
[1732251109289,4.39144709,3400.9,3400.2,0.7548]
[1732251110601,3.0,3400.8,3400.2,0.7548]
[1732251110807,3.0,3400.4,3400.2,0.7548]
[1732251111115,3.0,3400.4,3399.9,0.7548]
[1732251114252,3.0,3400.4,3400.0,0.2931]
[1732251114438,0.66772542,3400.3,3400.0,0.2931]
[1732251115555,3.0,3400.7,3400.0,0.2931]
[1732251118553,3.0,3400.3,3400.0,0.2931]
[1732251120665,3.0,3400.6,3400.0,0.2931]
[1732251120839,0.3,3400.5,3400.0,0.2931]
[1732251121427,3.6772542,3400.3,3400.0,0.2931]
[1732251123242,0.55,3400.2,3400.0,0.2931]
[1732251123443,3.55,3400.2,3400.1,0.2931]
[1732251123683,0.0476,3399.9,3398.9,0.7548]
[1732251123841,3.6772542,3399.2,3398.9,0.7548]
[1732251124042,0.36772542,3399.1,3398.9,0.46143]
[1732251124276,0.36772542,3399.1,3397.0,0.01]
[1732251124491,3.6772542,3398.8,3397.1,0.2140666]
[1732251124689,3.6772542,3398.8,3397.0,0.01]
[1732251124690,3.6772542,3398.8,3397.2,0.5071666]
[1732251124845,3.6772542,3398.8,3397.0,0.01]
[1732251125180,3.6772542,3398.4,3397.2,0.2931]
[1732251125598,3.0,3398.3,3397.2,0.2931]
[1732251125874,3.6772542,3398.0,3397.2,0.2931]
[1732251126080,3.6772542,3398.0,3397.3,0.2931]
[1732251126383,0.55,3397.8,3397.3,0.2931]
[1732251126584,3.6772542,3397.6,3397.3,0.2931]
[1732251127081,3.6772542,3397.6,3395.6,0.0394403]
[1732251127252,0.42272542,3397.5,3396.4,0.2931]
[1732251127444,0.42272542,3397.5,3396.7,0.7548]
[1732251127640,0.42272542,3397.5,3396.8,0.2931]
[1732251127868,0.40999796,3397.4,3396.8,0.2931]
[1732251128941,0.36772542,3397.9,3396.9,1.0479]
[1732251129182,3.0,3398.5,3397.2,0.7548]
[1732251129345,0.74040794,3398.5,3397.2,1.0479]
[1732251129541,0.74040794,3398.5,3397.2,0.7548]
[1732251129780,4.40407935,3398.2,3397.2,0.7548]
[1732251130165,4.40407935,3398.6,3397.2,0.7548]
[1732251130647,3.0,3398.5,3397.2,0.7548]
[1732251130842,0.55,3398.4,3397.2,0.7548]
[1732251131057,4.95407935,3398.2,3397.2,0.7548]
[1732251131279,0.55,3397.7,3397.2,0.7548]
[1732251131577,4.40407935,3397.8,3397.2,0.7548]
[1732251132350,3.0,3398.1,3397.2,0.7548]
[1732251132745,4.40407935,3397.8,3397.2,0.7548]
[1732251132946,3.49540793,3397.7,3397.2,0.7548]
[1732251135649,0.55,3397.6,3396.9,0.7523]
[1732251137089,0.24924559,3398.0,3396.9,0.7523]
[1732251137292,4.40407935,3398.2,3396.9,0.7523]
[1732251137488,0.636223,3398.7,3396.9,0.7523]
[1732251137489,4.65853157,3398.6,3396.9,0.7523]
[1732251137689,4.65853157,3398.6,3396.9,1.0454]
[1732251137889,4.65853157,3398.6,3397.0,0.7523]
[1732251138099,4.65853157,3398.6,3397.1,0.7523]
[1732251138682,0.55,3398.4,3397.1,0.7523]
[1732251138883,0.52085316,3398.3,3397.1,0.7523]
[1732251139066,4.40407935,3398.2,3397.1,0.7523]
[1732251139395,4.40407935,3398.2,3397.2,0.2931]
[1732251139758,4.40407935,3398.2,3397.4,0.2931]
[1732251140063,4.9515726,3398.2,3397.4,0.2931]
[1732251140467,0.54749325,3398.2,3397.4,0.2931]
[1732251140671,0.52085316,3398.3,3397.4,0.2931]
[1732251142402,0.52085316,3398.3,3396.8,0.2931]
[1732251142690,0.52085316,3398.3,3397.4,0.2931]
[1732251142852,0.40708532,3398.2,3397.4,0.2931]
[1732251146205,0.55,3398.1,3397.4,0.2931]
[1732251146656,4.40407935,3398.2,3397.4,0.2931]
[1732251147003,0.52085316,3398.3,3397.4,0.2931]
[1732251148800,3.68218611,3398.2,3397.4,0.2931]
[1732251148986,3.0,3398.1,3397.4,0.2931]
[1732251149181,0.72030393,3398.0,3397.4,0.2931]
[1732251150574,0.72030393,3398.0,3397.5,0.2931]
[1732251150804,0.341,3399.7,3398.1,0.2931]
[1732251151003,3.68218611,3399.5,3398.3,0.2931]
[1732251151306,0.40231861,3399.4,3398.5,0.2931]
[1732251152143,0.55,3399.3,3398.5,0.2931]
[1732251152854,3.40231861,3399.4,3399.0,0.2931]
[1732251152855,0.40231861,3399.4,3399.0,0.2931]
[1732251153156,3.68218611,3400.1,3399.2,0.2931]
[1732251153314,0.01,3401.4,3397.9,0.32069438]
[1732251153315,0.341,3401.4,3399.6,0.2931]
[1732251153647,3.68218611,3400.8,3399.6,0.2931]
[1732251154113,3.68218611,3400.4,3399.5,0.8099]
[1732251154529,0.70921861,3400.7,3397.6,0.01]
[1732251154530,3.55,3399.9,3397.6,0.01]
[1732251154734,3.0,3399.5,3397.8,0.8099]
[1732251154934,0.55,3399.4,3397.8,0.8099]
[1732251155457,0.55,3399.4,3398.0,0.8099]
[1732251155630,0.72321861,3399.3,3398.1,1.103]
[1732251155820,0.72321861,3399.3,3397.4,0.02]
[1732251155821,3.0,3399.6,3398.4,0.8099]
[1732251156022,3.68218611,3399.3,3398.4,0.8099]
[1732251156217,3.0,3399.6,3396.7,0.8099]
[1732251156218,3.68218611,3398.6,3396.7,0.8099]
[1732251156424,3.68218611,3398.2,3396.7,0.8099]
[1732251156619,0.42321861,3398.1,3396.7,0.8099]
[1732251156856,3.0,3399.0,3396.9,0.8099]
[1732251157066,0.55,3398.8,3397.1,0.8099]
[1732251157372,0.55,3398.8,3396.9,0.2931]
[1732251157519,0.86608511,3398.9,3397.4,0.8099]
[1732251157719,0.86608511,3398.9,3397.0,0.03943423]
[1732251157720,0.86608511,3398.9,3397.6,0.8099]
[1732251157938,0.86608511,3398.9,3397.0,0.01]
[1732251157939,0.86608511,3398.9,3397.8,0.8099]
[1732251158261,2.9411,3400.1,3397.8,0.8099]
[1732251158262,0.341,3399.9,3398.3,0.8099]
[1732251158617,0.341,3399.9,3398.4,0.8099]
[1732251158818,4.40163244,3400.0,3398.4,0.8099]
[1732251158819,0.47426324,3399.8,3398.4,1.103]
[1732251159065,0.47426324,3399.8,3398.6,0.8099]
[1732251159223,0.47426324,3399.8,3398.7,0.8099]
[1732251159548,0.25939973,3400.1,3398.7,0.8099]
[1732251159737,4.40163244,3400.4,3398.7,0.8099]
[1732251160141,3.55,3400.3,3398.7,0.8099]
[1732251161229,4.40163244,3400.0,3398.7,0.8099]
[1732251161564,3.0,3399.5,3398.7,0.8099]
[1732251161763,0.55,3399.4,3398.7,0.8099]
[1732251161953,4.40163244,3399.2,3398.7,0.8099]
[1732251162263,4.40163244,3399.2,3397.7,0.2931]
[1732251162264,3.55,3398.7,3397.8,0.7538]
[1732251162558,3.0,3398.3,3397.8,0.7538]
[1732251162860,3.55,3398.7,3397.8,0.7538]
[1732251163567,3.8092216,3398.7,3397.8,0.7538]
[1732251163761,0.8210854,3398.6,3397.8,0.7538]
[1732251163964,3.44016324,3399.1,3397.8,0.7538]
[1732251164124,3.44016324,3399.1,3397.9,0.2931]
[1732251164125,0.8092161,3399.0,3397.9,0.2931]
[1732251164318,0.55,3399.0,3397.9,0.2931]
[1732251164526,3.55,3398.7,3397.9,0.2931]
[1732251165234,3.55,3398.3,3398.0,0.2931]
[1732251165753,3.55,3398.3,3398.2,0.2931]
[1732251165754,3.0,3398.3,3398.2,0.2931]
[1732251166137,3.74016324,3398.3,3398.2,0.2931]
[1732251166869,3.74016324,3398.3,3397.8,0.2931]
[1732251167762,0.74016324,3398.3,3397.8,0.2931]
[1732251167965,3.25463856,3398.7,3397.8,0.2931]
[1732251168172,0.55,3398.6,3397.8,0.2931]
[1732251168330,3.0,3398.7,3397.8,0.2931]
[1732251168665,0.74016324,3398.6,3397.8,0.2931]
[1732251169358,0.74016324,3398.6,3397.9,1.0469]
[1732251169579,3.0,3399.1,3397.9,1.0469]
[1732251170363,0.341,3399.8,3398.0,1.0469]
[1732251170599,0.341,3399.8,3398.3,0.7538]
[1732251170784,0.47426324,3399.7,3398.4,0.2931]
[1732251171756,3.0,3399.5,3398.4,0.2931]
[1732251172157,4.40163244,3399.6,3397.5,0.2931]
[1732251172362,0.54674089,3399.5,3398.1,0.2931]
[1732251172563,0.54674089,3399.5,3398.5,0.2931]
[1732251173111,4.40163244,3400.0,3398.9,0.2931]
[1732251173276,3.0,3399.9,3398.9,0.2931]
[1732251173456,0.74016324,3399.8,3399.1,0.2931]
[1732251173660,4.40163244,3400.0,3399.1,0.2931]
[1732251173863,4.65484152,3400.0,3399.1,0.2931]
[1732251174408,4.65484152,3400.0,3399.0,0.7538]
[1732251174409,4.40163244,3399.6,3399.0,0.7538]
[1732251174713,3.0,3399.1,3397.2,0.7538]
[1732251174862,4.40163244,3398.8,3397.2,0.7538]
[1732251175389,4.40163244,3398.8,3397.3,0.2931]
[1732251175576,4.40163244,3398.8,3396.6,0.03943234]
[1732251175577,4.40163244,3398.8,3397.0,0.2931]
[1732251175778,0.44016324,3398.7,3397.2,0.2931]
[1732251175991,0.44016324,3398.7,3397.6,0.2931]
[1732251176166,0.44016324,3398.7,3397.8,0.2931]
[1732251176372,4.40163244,3398.8,3397.8,0.2931]
[1732251177677,3.341,3398.7,3397.8,0.2931]
[1732251177890,3.0,3398.3,3397.7,0.7538]
[1732251178883,3.0,3398.3,3396.0,0.2931]
[1732251179082,3.0,3398.3,3396.2,0.2931]
[1732251179083,0.74016324,3398.2,3396.2,0.2931]
[1732251179320,0.74016324,3398.2,3396.6,0.2931]
[1732251179502,0.74016324,3398.2,3396.8,0.2931]
[1732251179503,4.40163244,3398.0,3396.8,0.2931]
[1732251180314,0.74016324,3398.2,3397.2,0.2931]
[1732251181029,0.74016324,3398.2,3397.6,0.2931]
[1732251181320,0.74016324,3398.2,3396.2,0.02943754]
[1732251181321,4.40163244,3399.5,3398.2,0.2931]
[1732251181622,1.35114348,3399.4,3398.4,0.2931]
[1732251182120,4.40163244,3399.5,3398.4,0.2931]
[1732251182480,3.0,3399.4,3398.4,0.2931]
[1732251182877,3.0,3399.0,3398.4,0.2931]
[1732251183325,4.40163244,3398.7,3398.4,0.2931]
[1732251183541,3.44016324,3398.6,3398.4,0.2931]
[1732251183682,3.44016324,3398.6,3398.0,0.2931]
[1732251184034,4.40163244,3398.3,3398.0,0.2931]
[1732251184184,4.40163244,3398.3,3397.6,0.7538]
[1732251184380,0.44016324,3398.2,3397.6,0.7538]
[1732251184646,4.40163244,3397.9,3397.6,0.7538]
[1732251184785,4.40163244,3397.9,3397.4,0.2931]
[1732251185427,3.0,3397.8,3397.4,0.2931]
[1732251186419,3.0,3397.8,3395.4,0.01]
[1732251186420,3.0,3397.8,3397.1,0.2931]
[1732251186737,4.40163244,3397.5,3397.1,0.2931]
[1732251186925,4.40163244,3397.5,3397.0,0.7538]
[1732251187642,3.0,3397.8,3394.6,0.2931]
[1732251187643,3.0,3397.0,3396.6,0.7538]
[1732251187942,3.0,3397.4,3396.6,1.0469]
[1732251188098,0.628431,3397.3,3396.6,0.7538]
[1732251189735,3.0,3397.0,3396.6,0.7538]
[1732251190033,0.74016324,3396.9,3396.6,0.7538]
[1732251191438,4.40163244,3397.5,3396.6,0.7538]
[1732251191439,3.0,3397.4,3396.6,0.7538]
[1732251191738,0.01,3398.5,3395.2,0.2931]
[1732251191739,4.40163244,3397.9,3396.8,0.7801]
[1732251192085,4.40163244,3397.5,3396.8,0.7801]
[1732251193031,3.0,3397.4,3396.8,0.7801]
[1732251195032,3.0,3397.4,3395.7,0.7801]
[1732251195235,0.74016324,3397.3,3396.0,0.55]
[1732251195425,1.08116324,3397.3,3396.0,0.55]
[1732251195610,4.40163244,3397.1,3396.0,0.55]
[1732251195804,3.54827957,3397.0,3396.0,0.55]
[1732251196029,4.40163244,3396.7,3395.9,0.7801]
[1732251197505,0.54827957,3397.0,3396.2,0.55]
[1732251197705,3.0,3397.1,3396.2,0.55]
[1732251198014,3.0,3397.1,3396.3,0.7801]
[1732251198722,3.0,3397.1,3396.4,0.55]
[1732251199339,3.0,3397.1,3396.5,0.2931]
[1732251200555,0.25648025,3397.5,3396.7,0.2931]
[1732251200556,3.25648025,3397.5,3396.7,0.2931]
[1732251200733,4.40163244,3397.6,3396.7,0.2931]
[1732251200906,4.40163244,3398.0,3397.1,1.0732]
[1732251201358,4.65503391,3398.0,3397.1,1.0732]
[1732251201533,0.49960339,3397.9,3397.1,1.0732]
[1732251202107,3.49960339,3397.9,3397.1,1.0732]
[1732251202329,0.49960339,3397.9,3397.1,1.0732]
[1732251203446,0.49960339,3397.9,3397.1,1.07195922]
[1732251203655,4.40163244,3397.6,3397.1,1.07195922]
[1732251203949,4.40163244,3397.6,3395.2,0.01]
[1732251203950,3.44016324,3397.5,3396.9,0.29061844]
[1732251205356,3.0,3397.5,3397.1,0.29061844]
[1732251205845,7.40163244,3397.2,3397.1,0.29061844]
[1732251206214,7.40163244,3397.2,3396.9,0.29061844]
[1732251206411,0.74016324,3397.1,3396.9,0.29061844]
[1732251209142,0.74016324,3397.1,3397.0,0.29061844]
[1732251210000,0.74016324,3397.1,3394.7,0.8297]
[1732251210001,0.01,3396.5,3394.7,0.8297]
[1732251210278,0.01,3396.4,3394.7,0.8297]
[1732251210441,0.02944423,3396.3,3394.7,0.8297]
[1732251210636,0.01,3396.2,3394.6,0.2931]
[1732251210841,0.02944423,3396.1,3394.8,0.2931]
[1732251211040,0.02944423,3396.1,3395.2,0.2931]
[1732251211990,0.02944423,3396.1,3395.6,0.2931]
[1732251212288,4.41163244,3396.2,3395.6,0.2931]
[1732251212449,0.4735519,3396.1,3395.6,0.2931]
[1732251212852,0.01,3396.0,3395.6,0.2931]
[1732251213248,0.02944423,3395.9,3395.6,0.2931]
[1732251214053,0.02944423,3395.9,3395.2,0.2931]
[1732251214283,0.01,3395.6,3395.2,0.2931]
[1732251214486,0.03944423,3395.6,3395.1,0.8297]
[1732251215167,4.41163244,3395.4,3395.1,0.8297]
[1732251215396,4.41163244,3395.4,3394.1,0.2931]
[1732251215397,0.01,3395.2,3394.8,0.8297]
[1732251215594,4.40163244,3395.0,3394.8,0.8297]
[1732251216171,4.40163244,3395.0,3393.9,3.0]
[1732251216172,4.40163244,3395.0,3394.2,1.1228]
[1732251216370,0.02944423,3394.9,3394.2,1.1228]
[1732251217608,4.9296951,3395.0,3394.2,1.1228]
[1732251217981,0.01,3394.6,3394.2,1.1228]
[1732251218191,4.44107667,3394.6,3394.2,1.1228]
[1732251218508,0.44410767,3394.5,3394.1,0.2931]
[1732251218690,0.02944423,3394.4,3394.1,0.2931]
[1732251219355,0.02944423,3394.4,3393.9,3.8297]
[1732251219603,0.02944423,3394.4,3393.9,3.0]
[1732251220170,0.01,3394.8,3394.1,0.8297]
[1732251220371,4.40163244,3395.0,3394.2,0.55]
[1732251220618,4.40163244,3395.0,3394.3,0.8297]
[1732251220619,0.02944423,3394.9,3394.3,0.8297]
[1732251220968,4.40163244,3395.0,3394.3,0.8297]
[1732251222184,4.40163244,3395.4,3394.6,0.55]
[1732251222383,0.02944423,3395.3,3394.7,0.7595]
[1732251222700,0.02944423,3395.3,3394.8,0.55]
[1732251222873,0.02944423,3395.3,3394.7,0.7595]
[1732251223079,0.03944423,3395.3,3394.7,0.7595]
[1732251223895,0.4745519,3395.3,3394.7,0.7595]
[1732251224109,4.43107667,3395.4,3394.7,0.7595]
[1732251224611,4.40163244,3395.4,3394.7,0.7595]
[1732251224989,2.94407,3396.7,3394.1,0.32255856]
[1732251224990,0.01,3395.9,3394.8,0.8431]
[1732251225316,0.02944423,3395.9,3395.1,0.7595]
[1732251225479,4.41163244,3396.3,3395.1,0.7595]
[1732251225480,0.01,3396.1,3395.1,0.7595]
[1732251225791,0.02944423,3396.0,3395.1,0.7595]
[1732251226808,3.53071541,3396.2,3395.2,0.55]
[1732251227062,0.02944423,3396.0,3395.2,0.55]
[1732251227672,0.82367902,3396.0,3395.2,0.55]
[1732251228167,0.02944423,3396.0,3395.2,0.55]
[1732251228469,0.02944423,3396.1,3395.4,0.55]
[1732251229172,0.02944423,3396.1,3395.5,0.2931]
[1732251229375,0.50127118,3396.2,3395.5,0.2931]
[1732251229673,4.40163244,3396.3,3395.7,0.7595]
[1732251229828,4.40163244,3396.7,3395.9,0.8431]
[1732251230027,4.40163244,3396.7,3396.0,0.7595]
[1732251230268,0.44310767,3396.6,3396.1,0.55]
[1732251230451,4.40163244,3396.3,3396.0,1.0526]
[1732251230677,0.46960747,3396.2,3395.5,0.2931]
[1732251230879,0.02944423,3396.2,3395.5,0.2931]
[1732251231187,4.40163244,3396.3,3395.5,0.2931]
[1732251232186,0.02944423,3396.2,3395.5,0.2931]
[1732251235295,0.03944423,3396.2,3395.5,0.2931]
[1732251235502,0.47082862,3396.1,3395.5,0.2931]
[1732251235663,0.02944423,3396.0,3395.5,0.2931]
[1732251236906,0.01,3395.7,3395.2,0.2931]
[1732251237373,4.79207667,3395.9,3395.2,0.2931]
[1732251237572,0.47920767,3395.8,3395.2,0.2931]
[1732251239422,0.5086519,3395.8,3395.2,0.2931]
[1732251240273,0.47920767,3395.8,3395.2,0.2931]
[1732251240776,0.04944423,3396.1,3395.2,0.2931]
[1732251241479,0.01,3395.9,3395.2,0.2931]
[1732251241681,0.03944423,3395.9,3395.2,0.2931]
[1732251242292,0.02944423,3395.9,3395.2,0.2931]
[1732251242810,0.02,3396.1,3395.2,0.2931]
[1732251242811,3.68700448,3396.0,3395.2,0.2931]
[1732251243013,0.02944423,3396.0,3395.4,0.2931]
[1732251243222,0.02944423,3396.0,3395.4,0.4450908]
[1732251243825,3.69700448,3395.5,3394.1,0.2931]
[1732251244118,0.4714,3394.6,3394.1,0.2931]
[1732251244321,3.4714,3394.6,3394.1,0.2931]
[1732251244676,0.01,3394.9,3394.1,0.63546816]
[1732251244906,3.0,3395.0,3394.3,0.2931]
[1732251245507,0.02944423,3394.9,3394.3,0.2931]
[1732251245725,3.0,3395.0,3394.3,0.2931]
[1732251246138,3.0,3395.0,3394.3,0.45042497]
[1732251246641,0.01,3395.3,3394.3,0.45042497]
[1732251246642,0.02944423,3394.9,3394.3,0.2931]
[1732251246823,4.44000266,3395.3,3394.3,0.2931]
[1732251247021,0.02944423,3395.3,3394.5,0.2931]
[1732251247228,0.04944423,3395.6,3394.5,0.2931]
[1732251247822,0.02944423,3395.6,3394.5,0.2931]
[1732251248046,4.41055843,3395.7,3394.7,0.2931]
[1732251248260,4.41055843,3396.1,3395.1,0.2931]
[1732251248465,0.02944423,3396.0,3395.3,0.2931]
[1732251248604,4.41055843,3396.1,3395.3,0.2931]
[1732251248948,0.02944423,3396.0,3395.3,0.2931]
[1732251249904,3.0,3396.4,3395.5,1.1003]
[1732251250427,0.03944423,3396.3,3395.5,1.1003]
[1732251250633,0.01,3395.9,3395.5,0.2931]
[1732251250835,0.01,3395.8,3395.5,0.2931]
[1732251251006,4.44000266,3395.7,3395.3,0.2931]
[1732251253004,4.44000266,3395.7,3395.0,0.2931]
[1732251253202,0.02944423,3395.7,3395.0,0.2931]
[1732251253441,0.39729001,3395.7,3395.0,0.2931]
[1732251253639,0.95290007,3395.9,3395.0,0.2931]
[1732251253812,0.02944423,3395.8,3395.0,0.2931]
[1732251255010,0.03944423,3395.9,3395.0,0.2931]
[1732251255211,0.74600027,3395.8,3395.0,0.2931]
[1732251255413,0.02944423,3395.7,3395.0,0.2931]
[1732251255915,0.02944423,3395.7,3394.9,0.8072]
[1732251255916,3.01,3395.6,3394.9,0.8072]
[1732251256130,0.02944423,3395.5,3394.9,0.8072]
[1732251256305,0.79314027,3395.4,3394.9,0.8072]
[1732251256650,0.02944423,3395.3,3394.6,0.2931]
[1732251257007,4.45000266,3395.3,3394.6,0.2931]
[1732251257431,4.44000266,3395.3,3394.6,0.2931]
[1732251257608,4.41055843,3395.3,3394.6,0.2931]
[1732251257807,0.02944423,3395.2,3394.6,0.2931]
[1732251258752,4.41055843,3395.3,3394.6,0.2931]
[1732251259247,0.02944423,3395.2,3394.6,0.2931]
[1732251259953,0.01,3395.1,3394.1,0.2931]
[1732251260110,4.41055843,3394.9,3394.1,1.0666]
[1732251260308,0.02944423,3394.8,3394.1,1.0666]
[1732251260653,0.57708452,3394.8,3394.1,1.0666]
[1732251260863,0.57708452,3394.8,3394.1,0.2931]
[1732251261244,4.41055843,3394.5,3394.1,0.2931]
[1732251261436,0.02944423,3394.4,3394.1,0.2931]
[1732251262325,4.44000266,3394.5,3394.1,0.2931]
[1732251262524,4.41055843,3394.5,3394.1,0.2931]
[1732251262726,5.15361427,3394.5,3394.1,0.2931]
[1732251263571,4.41055843,3394.5,3394.1,0.2931]
[1732251263871,0.02944423,3394.4,3394.1,0.2931]
[1732251264232,4.44000266,3394.5,3394.1,0.2931]
[1732251264575,4.41055843,3394.5,3394.1,0.2931]
[1732251264883,5.1565587,3394.5,3394.1,0.2931]
[1732251265563,4.41055843,3394.5,3394.1,0.2931]
[1732251266128,3.0,3394.8,3394.1,0.2931]
[1732251266328,3.0,3394.8,3394.2,1.0968]
[1732251266765,3.68969504,3394.6,3394.2,1.0968]
[1732251267773,3.71913927,3394.6,3394.2,1.0968]
[1732251267966,4.3930532,3394.6,3394.2,1.0968]
[1732251268676,3.71913927,3394.6,3394.2,1.0968]
[1732251268871,3.68969504,3394.6,3394.2,1.0968]
[1732251273052,0.02944423,3394.5,3394.2,1.0968]
[1732251273637,3.68969504,3394.6,3394.2,1.0968]
[1732251275873,0.02944423,3394.5,3394.2,1.0968]
[1732251276043,3.68969504,3394.6,3394.2,1.0968]
[1732251276954,0.02944423,3394.5,3394.2,1.0968]
[1732251277168,3.68969504,3394.6,3394.2,1.0968]
[1732251277363,0.03944423,3394.9,3394.2,1.0968]
[1732251277364,3.0,3394.9,3394.2,1.0968]
[1732251279499,3.0,3394.9,3394.4,0.2931]
[1732251280263,0.02944423,3394.8,3394.4,0.2931]
[1732251280462,0.67391393,3394.7,3394.4,0.2931]
[1732251280705,0.67391393,3394.7,3394.1,0.2931]
[1732251280900,0.02944423,3394.6,3394.1,0.2931]
[1732251281963,3.71913927,3394.6,3394.1,0.2931]
[1732251282158,0.44030532,3394.5,3394.1,0.2931]
[1732251282558,0.50084423,3394.4,3394.1,0.2931]
[1732251285203,0.02944423,3394.4,3394.1,0.2931]
[1732251285503,0.45030532,3394.5,3394.1,0.2931]
[1732251285668,0.01,3394.3,3394.1,0.2931]
[1732251285870,3.68969504,3394.2,3394.1,0.2931]
[1732251286359,3.71913927,3394.2,3394.1,0.2931]
[1732251287142,3.68969504,3394.2,3394.1,0.2931]
[1732251287350,3.71913927,3394.2,3394.1,0.2931]
[1732251288444,3.68969504,3394.2,3394.1,0.2931]
[1732251288740,4.06360897,3394.2,3394.1,0.2931]
[1732251289606,4.0930532,3394.2,3394.1,0.2931]
[1732251290142,4.06360897,3394.2,3394.1,0.2931]
[1732251293451,4.0930532,3394.2,3394.1,0.2931]
[1732251294712,3.68969504,3394.2,3394.1,0.2931]
[1732251298142,3.68969504,3394.6,3394.1,1.0674]
[1732251299049,0.02944423,3394.5,3394.1,1.0674]
[1732251299247,3.68969504,3394.6,3394.1,1.0674]
[1732251300656,0.04944423,3395.2,3394.1,1.0674]
[1732251300657,3.68969504,3395.0,3394.1,1.0674]
[1732251301194,0.02944423,3394.9,3394.1,1.0674]
[1732251301554,3.68969504,3394.6,3394.1,1.0674]
[1732251301752,0.02944423,3394.5,3394.1,1.0674]
[1732251302135,3.68969504,3394.6,3394.1,1.0674]
[1732251302447,0.02944423,3394.5,3394.1,1.0674]
[1732251302689,3.68969504,3395.0,3394.3,0.2931]
[1732251302847,3.68969504,3395.0,3394.0,0.13058155]
[1732251302848,3.68969504,3395.0,3394.5,0.2931]
[1732251303550,4.06360897,3395.0,3394.5,0.2931]
[1732251303985,0.02944423,3394.9,3394.5,0.2931]
[1732251304564,4.06360897,3395.0,3394.5,0.2931]
[1732251305077,0.02944423,3394.9,3394.5,0.2931]
[1732251305761,3.68969504,3394.6,3394.5,0.2931]
[1732251305968,4.06260897,3394.6,3394.5,0.2931]
[1732251306883,4.1120532,3394.6,3394.5,0.2931]
[1732251307096,7.1120532,3394.6,3394.5,0.2931]
[1732251307272,7.08260897,3394.6,3394.5,0.2931]
[1732251307671,0.02,3394.2,3394.1,0.2931]
[1732251307891,3.73913927,3394.2,3394.1,0.2931]
[1732251312886,4.21053927,3394.2,3394.1,0.2931]
[1732251313086,3.4714,3394.1,3394.0,0.13058155]
[1732251313289,4.44245393,3394.1,3394.0,0.13058155]
[1732251313500,4.47189816,3394.1,3394.0,0.13058155]
[1732251313890,4.47189816,3394.1,3394.0,1e-08]
[1732251314097,0.4914,3393.7,3393.6,0.2931]
[1732251314426,0.01,3393.2,3392.6,0.2931]
[1732251314636,3.68969504,3393.4,3392.8,0.2931]
[1732251314826,3.69969504,3393.7,3393.0,0.2931]
[1732251314992,3.68969504,3393.7,3393.1,1.1175]
[1732251315316,3.71913927,3394.0,3393.3,0.2931]
[1732251315902,3.72913927,3394.0,3393.3,0.2931]
[1732251316418,3.71913927,3394.0,3393.3,0.2931]
[1732251316786,3.71913927,3394.0,3392.7,0.2931]
[1732251316973,0.01,3394.5,3392.7,0.2931]
[1732251316974,3.68969504,3394.4,3393.3,0.2931]
[1732251317211,3.68969504,3394.4,3393.6,0.8244]
[1732251317212,0.02944423,3394.3,3393.6,0.8244]
[1732251317547,0.01,3394.2,3393.9,0.2931]
[1732251317848,0.01,3394.2,3392.6,0.55]
[1732251317849,3.68969504,3394.0,3393.6,0.8244]
[1732251318020,3.68969504,3394.0,3393.7,0.2931]
[1732251318438,0.01,3394.2,3393.7,0.2931]
[1732251319372,0.01,3394.2,3393.6,0.8244]
[1732251319373,15.24,3393.1,3391.9,0.28853998]
[1732251319514,15.24,3393.1,3389.7,0.30687954]
[1732251319515,0.01,3391.4,3389.7,0.30687954]
[1732251319715,3.69969504,3389.8,3389.7,0.30687954]
[1732251319936,3.69969504,3389.8,3389.0,1.08102126]
[1732251320255,3.68969504,3390.1,3389.0,0.8244]
[1732251320553,0.45629593,3389.3,3389.1,0.2931]
[1732251320715,1.35211797,3389.2,3389.1,0.2931]
[1732251321138,0.71182165,3389.2,3389.1,0.2931]
[1732251321347,0.89582204,3389.2,3389.1,0.2931]
[1732251321552,0.89582204,3389.2,3389.0,0.45506714]
[1732251321749,3.68969504,3389.7,3389.0,0.45506714]
[1732251321750,3.68969504,3389.7,3389.1,0.2931]
[1732251321988,1.26310974,3389.6,3389.1,0.2931]
[1732251322275,0.89414024,3389.6,3389.1,0.2931]
[1732251322854,0.45511343,3389.3,3389.1,0.2931]
[1732251323987,0.03687969,3390.4,3389.1,0.2931]
[1732251324346,0.62079706,3390.3,3389.1,0.55]
[1732251324547,0.45422439,3389.4,3389.1,0.55]
[1732251324764,0.18399277,3389.3,3389.1,0.55]
[1732251324963,0.45422439,3389.4,3389.0,0.45506714]
[1732251324964,0.18399277,3389.2,3389.0,0.45506714]
[1732251325167,0.45422439,3389.5,3389.3,0.55]
[1732251325367,0.0468792,3390.9,3389.5,0.55]
[1732251325368,0.63821716,3390.0,3389.5,0.55]
[1732251325644,0.18399277,3389.9,3389.6,0.0148338]
[1732251325866,0.45422439,3390.1,3389.6,0.0148338]
[1732251326068,0.18399277,3390.0,3389.6,0.0148338]
[1732251326382,0.18399277,3390.1,3389.8,0.55]
[1732251326543,0.45422439,3390.4,3389.8,0.55]